bitfinex-derivatives/quotes_SOLF0:USTF0_20250202
["timestamp","ask_amount","ask_price","bid_price","bid_amount"]
[1738486666744,5.7585905,214.98,214.91,5.7585905]
[1738486666940,5.7585905,215.0,214.93,5.7585905]
[1738486667446,5.7585905,214.98,214.94,4.6533]
[1738486667646,5.7585905,214.98,214.93,1.4416]
[1738486667843,5.79206813,214.98,214.93,1.47307751]
[1738486668849,0.03347763,214.98,214.96,4.6529]
[1738486670752,0.03347763,214.98,214.93,1.47307751]
[1738486671050,0.03347763,214.98,214.97,4.6527]
[1738486671847,8.9992693,215.07,214.97,4.6527]
[1738486672040,8.9992693,215.1,214.96,8.9992693]
[1738486672648,4.6502,215.09,215.04,4.6512]
[1738486672850,0.03311933,215.09,215.04,0.0344715]
[1738486674546,0.03311933,215.09,215.06,4.6506]
[1738486676045,0.03311933,215.09,215.04,0.0344715]
[1738486676249,8.9992693,215.16,215.04,0.0344715]
[1738486676451,8.9992693,215.19,215.05,8.9992693]
[1738486676949,13.6472693,215.19,215.05,8.9992693]
[1738486677351,13.6472693,215.19,215.1,0.03144016]
[1738486677651,4.6482,215.18,215.11,4.6496]
[1738486678050,8.9992693,215.19,215.12,4.6495]
[1738486679147,4.6482,215.18,215.12,4.6495]
[1738486679545,8.9992693,215.19,215.13,4.6492]
[1738486680148,8.9992693,215.19,215.14,4.6491]
[1738486680549,8.9992693,215.19,215.14,4.68366809]
[1738486680949,8.9992693,215.22,215.14,0.03456809]
[1738486681145,13.6467693,215.22,215.15,4.6488]
[1738486681351,8.9992693,215.25,215.14,0.03456809]
[1738486681545,8.9992693,215.25,215.13,1.4751]
[1738486681751,8.9992693,215.25,215.17,0.0354552]
[1738486683655,8.9992693,215.28,215.17,0.0354552]
[1738486683855,8.9992693,215.28,215.14,8.9992693]
[1738486684056,8.9992693,215.28,215.2,0.0353452]
[1738486684358,8.9992693,215.28,215.21,4.6474]
[1738486684956,13.6454693,215.28,215.21,4.6474]
[1738486686753,4.6462,215.28,215.21,4.6474]
[1738486686962,8.9992693,215.34,215.2,9.0346145]
[1738486687160,8.9992693,215.37,215.23,8.9992693]
[1738486687360,8.9992693,215.4,215.26,8.9992693]
[1738486687960,8.9992693,215.4,215.31,0.03488477]
[1738486688660,8.9992693,215.37,215.31,0.03488477]
[1738486688963,8.9992693,215.33,215.24,1.4775]
[1738486689165,13.6442693,215.33,215.32,0.03386131]
[1738486689459,8.9992693,215.33,215.24,1.4775]
[1738486689664,8.9992693,215.33,215.3,0.0357106]
[1738486690152,4.6454,215.31,215.3,0.0357106]
[1738486693968,4.6451,215.33,215.3,0.0357106]
[1738486694264,8.9992693,215.36,215.3,0.0357106]
[1738486694761,4.645,215.33,215.3,0.0357106]
[1738486696759,8.9992693,215.46,215.3,9.0349799]
[1738486697064,8.9992693,215.49,215.38,4.6438]
[1738486697254,8.9992693,215.49,215.36,9.03402174]
[1738486697459,8.9992693,215.49,215.36,8.9992693]
[1738486697659,8.9992693,215.49,215.4,0.03253409]
[1738486698160,8.9992693,215.43,215.4,0.03253409]
[1738486698762,4.643,215.42,215.4,0.03253409]
[1738486703272,4.6432,215.41,215.4,0.03253409]
[1738486704474,4.6441,215.37,215.31,6.0791]
[1738486704673,8.9992693,215.39,215.31,1.4337]
[1738486704874,8.9992693,215.39,215.24,11.8769693]
[1738486705174,8.9992693,215.39,215.25,1.4487]
[1738486705674,0.03346905,215.34,215.3,0.03018328]
[1738486705873,4.67826905,215.34,215.3,0.03018328]
[1738486710477,4.645,215.33,215.3,0.03018328]
[1738486711279,0.03346905,215.34,215.33,4.645]
[1738486711475,8.9992693,215.46,215.32,8.9992693]
[1738486711675,8.9992693,215.46,215.33,1.4263]
[1738486712071,8.9992693,215.46,215.34,1.4503]
[1738486712579,8.9992693,215.46,215.38,0.03533903]
[1738486712881,4.6429,215.43,215.38,0.03533903]
[1738486713277,4.6426,215.45,215.38,4.67923903]
[1738486713679,8.9992693,215.46,215.38,4.67923903]
[1738486714778,4.6426,215.44,215.38,4.67923903]
[1738486715175,4.6426,215.44,215.38,0.03533903]
[1738486715478,4.6435,215.4,215.38,0.03533903]
[1738486716182,4.6437,215.39,215.38,0.03533903]
[1738486718183,8.9992693,215.43,215.38,0.03533903]
[1738486718381,8.9992693,215.46,215.38,0.03533903]
[1738486718581,8.9992693,215.46,215.36,4.6443]
[1738486718780,8.9992693,215.46,215.4,0.03026338]
[1738486719286,8.9992693,215.49,215.4,0.03026338]
[1738486719885,4.6424,215.45,215.4,0.03026338]
[1738486720379,4.6433,215.41,215.4,0.03026338]
[1738486722181,4.645,215.34,215.27,6.0984]
[1738486722581,4.645,215.34,215.27,1.4522]
[1738486722986,8.9992693,215.36,215.27,1.4522]
[1738486723181,4.6445,215.35,215.29,0.02999942]
[1738486723387,0.03162165,215.34,215.29,0.02999942]
[1738486723885,4.67642165,215.34,215.29,0.02999942]
[1738486724480,4.645,215.33,215.29,0.02999942]
[1738486725987,0.03162165,215.34,215.29,0.02999942]
[1738486726192,4.6456,215.3,215.29,0.02999942]
[1738486727790,0.03162165,215.34,215.29,0.02999942]
[1738486728190,4.6438,215.39,215.34,4.6447]
[1738486729492,4.6438,215.39,215.34,4.6763866]
[1738486730489,8.9992693,215.43,215.34,0.0316866]
[1738486730686,4.6441,215.37,215.34,0.0316866]
[1738486730887,4.6441,215.37,215.32,4.645]
[1738486731083,8.9992693,215.4,215.27,1.4836]
[1738486731084,8.9992693,215.4,215.33,0.03055433]
[1738486731289,4.6439,215.38,215.33,0.03055433]
[1738486731492,8.9992693,215.4,215.33,0.03055433]
[1738486732190,4.6446,215.35,215.33,0.03055433]
[1738486732393,8.9992693,215.4,215.33,0.03055433]
[1738486732893,4.6443,215.37,215.33,0.03055433]
[1738486733693,4.6444,215.36,215.33,0.03055433]
[1738486734093,8.9992693,215.37,215.33,0.03055433]
[1738486735794,13.6433693,215.37,215.33,0.03055433]
[1738486738691,4.6441,215.37,215.33,0.03055433]
[1738486738997,13.6429693,215.4,215.33,0.03055433]
[1738486739194,4.6437,215.4,215.34,4.6447]
[1738486739896,4.6437,215.39,215.34,4.6447]
[1738486740196,8.9992693,215.43,215.33,0.03055433]
[1738486740397,4.6428,215.44,215.33,0.03055433]
[1738486740604,8.9992693,215.46,215.33,2.895]
[1738486740795,8.9992693,215.46,215.36,0.03006035]
[1738486741097,4.6431,215.42,215.37,4.6439]
[1738486745098,4.6426,215.45,215.38,4.6439]
[1738486745298,8.9992693,215.46,215.38,4.6439]
[1738486745501,8.9992693,215.46,215.36,0.03006035]
[1738486745800,28.27714602,215.52,215.38,8.9992693]
[1738486745997,6.42806608,215.52,215.41,8.9992693]
[1738486746195,6.42806608,215.52,215.42,2.85524985]
[1738486746397,6.42806608,215.52,215.48,4.6417]
[1738486746702,6.42806608,215.52,215.48,4.67698031]
[1738486748293,4.6415,215.49,215.48,0.03528031]
[1738486748697,13.6407693,215.49,215.48,0.03528031]
[1738486749195,4.6429,215.43,215.39,1.4543]
[1738486749503,4.6429,215.43,215.35,4.6444]
[1738486749701,4.6429,215.43,215.36,4.6443]
[1738486750194,4.643,215.42,215.36,4.6443]
[1738486750398,4.67327459,215.42,215.37,0.03335728]
[1738486752306,0.03027459,215.42,215.37,0.03335728]
[1738486753306,0.03027459,215.42,215.37,4.67745728]
[1738486754909,0.03027459,215.42,215.37,0.03335728]
[1738486755511,0.03027459,215.42,215.37,4.67735728]
[1738486756711,4.67347459,215.42,215.37,0.03335728]
[1738486757009,0.03027459,215.42,215.37,0.03335728]
[1738486757913,0.03027459,215.42,215.37,4.67745728]
[1738486760519,4.6436,215.4,215.37,0.03335728]
[1738486760818,9.02954389,215.42,215.37,0.03335728]
[1738486761320,13.6431693,215.39,215.37,0.03335728]
[1738486761625,8.9992693,215.39,215.37,0.03335728]
[1738486761825,4.6439,215.38,215.37,0.03335728]
[1738486781846,10.38546472,215.38,215.37,0.03335728]
[1738486799461,19.71156472,215.38,215.24,1.4068]
[1738486799667,5.74156472,215.25,215.24,1.4068]
[1738486800359,5.74156472,215.25,215.18,2.9339]
[1738486800565,5.74156472,215.21,215.19,1.4021]
[1738486800768,5.74156472,215.21,215.19,1.43340784]
[1738486801158,5.74156472,215.21,215.19,0.03130784]
[1738486801358,5.74156472,215.21,215.11,155.93378801]
[1738486801359,5.74156472,215.21,215.13,126.27053041]
[1738486801558,5.74156472,215.14,215.13,126.27053041]
[1738486801763,5.74156472,215.14,215.13,124.74703041]
[1738486802859,5.74156472,215.14,215.13,51.49637982]
[1738486803967,5.74156472,215.14,215.11,155.96354449]
[1738486803968,5.74156472,215.14,215.11,0.02975648]
[1738486804168,5.74156472,215.12,215.11,0.02975648]
[1738486806767,5.74156472,215.12,214.92,5.74156472]
[1738486806768,19.71156472,215.12,214.92,5.74156472]
[1738486806965,5.74156472,214.98,214.95,4.4644]
[1738486807165,5.74156472,215.0,214.95,4.4644]
[1738486807366,5.74156472,215.04,214.96,5.74156472]
[1738486807668,5.74156472,215.06,214.98,5.74156472]
[1738486807871,0.02977551,215.02,215.0,5.74156472]
[1738486808069,5.74156472,215.08,215.0,5.74156472]
[1738486808370,5.74156472,215.08,215.04,4.6512]
[1738486808573,5.74156472,215.08,215.05,1.3925]
[1738486808769,5.74156472,215.08,215.0,4.31979317]
[1738486809272,0.0338788,215.06,215.02,0.03120547]
[1738486809474,5.74156472,215.08,215.02,0.03120547]
[1738486809673,5.74156472,215.08,215.03,4.6513]
[1738486810071,5.74156472,215.06,215.02,0.03120547]
[1738486810274,5.74156472,215.04,214.96,5.74156472]
[1738486810474,1.4652,215.17,214.96,5.74156472]
[1738486810774,5.74156472,215.0,214.95,2.9384]
[1738486810974,5.74156472,214.98,214.95,2.9384]
[1738486811176,5.74156472,214.98,214.95,7.6228287]
[1738486811472,5.74156472,214.98,214.95,2.9697287]
[1738486811870,0.03497005,214.99,214.95,2.9697287]
[1738486812377,5.74156472,214.98,214.95,2.9697287]
[1738486812576,5.74156472,214.98,214.96,4.6529]
[1738486812971,5.74156472,214.98,214.95,2.9697287]
[1738486814874,5.74156472,214.96,214.95,0.0313287]
[1738486815271,5.74156472,214.96,214.88,1.5135]
[1738486815570,5.74156472,214.89,214.84,1.4664]
[1738486815777,5.74156472,214.86,214.84,1.4664]
[1738486816769,5.74156472,214.86,214.83,1.57332789]
[1738486817073,0.03089686,214.87,214.83,5.77379261]
[1738486817267,5.74156472,214.93,214.85,5.74156472]
[1738486817470,5.74156472,214.95,214.87,5.74156472]
[1738486817666,9.00415755,214.97,214.88,2.9771]
[1738486817865,9.00415755,215.0,214.88,2.9771]
[1738486818269,9.00415755,214.97,214.88,2.9771]
[1738486818475,0.03020963,214.96,214.92,0.03214032]
[1738486818977,9.00415755,214.94,214.92,0.03214032]
[1738486819176,0.03020963,214.96,214.92,0.03214032]
[1738486823780,0.03020963,214.96,214.93,4.6535]
[1738486824081,0.03020963,214.96,214.92,0.03214032]
[1738486825377,4.6532,214.95,214.92,0.03214032]
[1738486825677,0.03020963,214.96,214.92,0.03214032]
[1738486826374,9.00415755,214.94,214.92,0.03214032]
[1738486826777,9.00415755,214.94,214.81,1.5298]
[1738486827076,9.00415755,214.9,214.81,1.5298]
[1738486827280,9.00415755,214.84,214.79,2.9679]
[1738486827983,9.03550076,214.84,214.79,3.0025027]
[1738486828384,9.00415755,214.94,214.81,9.00415755]
[1738486828592,9.00415755,214.97,214.84,9.00415755]
[1738486828787,9.00415755,215.0,214.94,4.6534]
[1738486829086,9.00415755,215.0,214.79,2.9679]
[1738486829087,9.00415755,215.0,214.86,9.00415755]
[1738486829688,0.03164804,214.95,214.91,0.0327643]
[1738486833392,0.03164804,214.95,214.93,4.6536]
[1738486834186,0.03164804,214.95,214.94,4.6534]
[1738486834394,9.00415755,215.03,214.92,1.435]
[1738486835596,0.0348706,215.0,214.95,0.03416731]
[1738486836193,0.0348706,215.0,214.96,4.6529]
[1738486836496,0.0348706,215.0,214.95,0.03416731]
[1738486837590,0.0348706,215.0,214.96,4.6529]
[1738486837789,0.0348706,215.0,214.95,0.03416731]
[1738486838091,0.0348706,215.0,214.99,4.6523]
[1738486840189,0.0348706,215.0,214.95,0.03416731]
[1738486840897,0.0348706,215.0,214.98,4.6525]
[1738486841085,0.0348706,215.0,214.95,0.03416731]
[1738486841391,0.0348706,215.0,214.98,4.6524]
[1738486843297,9.03902815,215.0,214.95,0.03416731]
[1738486843997,4.6528,214.97,214.95,0.03416731]
[1738486844702,9.03902815,215.0,214.95,0.03416731]
[1738486845800,13.69112815,215.0,214.95,0.03416731]
[1738486848096,9.03902815,215.0,214.95,0.03416731]
[1738486848400,13.65715755,214.96,214.95,0.03416731]
[1738486848606,9.00415755,214.96,214.82,9.00415755]
[1738486848797,4.6538,214.92,214.85,4.6553]
[1738486849398,9.00415755,214.93,214.79,9.00415755]
[1738486849604,9.00415755,214.9,214.78,4.4036]
[1738486849896,0.02993955,214.88,214.84,0.03088612]
[1738486850098,9.00415755,214.96,214.82,9.00415755]
[1738486850302,9.00415755,214.99,214.85,9.00415755]
[1738486850499,4.6526,214.98,214.85,9.00415755]
[1738486850698,9.00415755,214.96,214.82,9.00415755]
[1738486850999,9.00415755,214.93,214.79,10.41315755]
[1738486851303,0.03098175,214.91,214.87,0.02993992]
[1738486851505,9.00415755,214.99,214.85,9.00415755]
[1738486851695,0.03571934,214.91,214.87,0.03499857]
[1738486852296,0.03571934,214.91,214.9,4.6543]
[1738486855212,9.00415755,215.08,214.88,10.40535755]
[1738486855512,9.00415755,215.08,214.94,9.00415755]
[1738486856009,4.651,215.05,214.98,4.6524]
[1738486856407,4.651,215.05,214.99,0.03166753]
[1738486857210,9.00415755,215.08,214.99,0.03166753]
[1738486857414,9.00415755,215.08,214.99,4.68396753]
[1738486858805,4.6508,215.06,214.99,4.68396753]
[1738486860816,4.6506,215.07,215.0,4.652]
[1738486861009,2.8101,215.1,214.99,0.03166753]
[1738486861010,1.4023,215.1,214.99,0.03166753]
[1738486861214,1.4023,215.1,215.03,4.6514]
[1738486861215,6.0524,215.1,215.03,4.6514]
[1738486861717,6.0524,215.1,215.04,0.03511506]
[1738486862419,9.00415755,215.14,215.04,0.03511506]
[1738486862617,9.00415755,215.14,215.0,9.00415755]
[1738486862818,9.00415755,215.14,215.05,0.03568231]
[1738486863417,9.00415755,215.11,215.05,0.03568231]
[1738486863622,9.00415755,215.11,214.94,9.00415755]
[1738486863623,9.00415755,215.08,214.91,1.5057]
[1738486863921,9.00415755,215.02,214.91,1.5057]
[1738486864220,9.00415755,215.02,214.95,4.653]
[1738486864417,9.00415755,215.02,214.91,1.5057]
[1738486864615,9.00415755,214.99,214.91,1.5057]
[1738486864816,4.6528,214.97,214.94,0.03131064]
[1738486865525,9.03506401,214.99,214.94,0.03131064]
[1738486865725,0.03090646,214.99,214.94,0.03131064]
[1738486866723,0.03090646,214.99,214.97,4.6527]
[1738486867426,0.03090646,214.99,214.95,1.5227]
[1738486867624,0.03090646,214.99,214.96,4.6529]
[1738486867822,0.03090646,214.99,214.95,1.5227]
[1738486868828,0.03090646,214.99,214.97,4.6527]
[1738486869227,0.03090646,214.99,214.94,0.03131064]
[1738486869427,4.68320646,214.99,214.94,0.03131064]
[1738486870229,4.6525,214.98,214.94,0.03131064]
[1738486871027,4.6525,214.98,214.87,2.9124]
[1738486871028,4.6525,214.98,214.81,3.1]
[1738486871423,14.40230884,215.03,214.81,3.1]
[1738486871927,0.03504431,214.96,214.95,4.6532]
[1738486872120,17.29050884,215.07,214.81,3.1]
[1738486872320,0.03132573,214.98,214.93,0.03011291]
[1738486872522,0.03132573,214.98,214.81,3.1]
[1738486872523,25.70545858,215.11,214.94,14.40230884]
[1738486872723,25.70545858,215.11,215.02,14.40230884]
[1738486873022,25.70545858,215.11,215.09,4.6501]
[1738486873329,25.70545858,215.11,215.02,14.40230884]
[1738486873724,0.03574937,215.09,215.04,0.0302392]
[1738486874420,0.03574937,215.09,215.08,4.6504]
[1738486877632,14.40230884,215.24,215.06,1.4655]
[1738486877832,2.7844,215.22,215.06,1.4655]
[1738486878231,2.7844,215.22,215.13,4.6492]
[1738486878433,2.7844,215.22,215.06,1.4655]
[1738486878434,2.7844,215.22,215.06,15.86780884]
[1738486878630,1.4046,215.23,215.06,15.86780884]
[1738486878929,4.6466,215.26,215.12,0.0347056]
[1738486879328,4.6466,215.26,215.1,14.40230884]
[1738486879527,4.6466,215.26,215.17,0.03081005]
[1738486880135,4.6474,215.22,215.17,0.03081005]
[1738486880429,14.40230884,215.24,215.17,0.03081005]
[1738486880733,14.40230884,215.2,215.09,4.65]
[1738486880926,2.9295,215.19,215.06,1.4655]
[1738486881134,14.40230884,215.16,214.98,14.40230884]
[1738486881333,14.40230884,215.16,214.98,17.33970884]
[1738486882136,0.03338851,215.09,215.05,0.03350935]
[1738486883430,0.03338851,215.09,215.07,4.6506]
[1738486884533,0.03338851,215.09,215.05,0.03350935]
[1738486885336,0.03338851,215.09,215.07,4.6505]
[1738486885537,0.03338851,215.09,215.05,0.03350935]
[1738486886639,0.03338851,215.09,215.08,4.6504]
[1738486887135,0.03338851,215.09,215.05,0.03350935]
[1738486887335,0.03338851,215.09,215.06,4.6507]
[1738486887530,0.03338851,215.09,215.05,0.03350935]
[1738486887732,0.03338851,215.09,215.08,4.6504]
[1738486888840,8.851e-05,215.09,215.08,4.6504]
[1738486891339,8.851e-05,215.09,214.98,15.84180884]
[1738486891645,8.851e-05,215.09,214.99,1.476]
[1738486891843,8.851e-05,215.09,215.07,4.6504]
[1738486892143,8.851e-05,215.09,214.99,1.476]
[1738486892338,8.851e-05,215.09,215.02,14.40230884]
[1738486892544,8.851e-05,215.09,215.08,4.6504]
[1738486894442,8.851e-05,215.09,215.08,6.0489]
[1738486895140,1.4794,215.23,215.08,6.0489]
[1738486895141,6.1267,215.23,215.18,4.6481]
[1738486896039,6.1267,215.23,215.08,1.3985]
[1738486896546,0.03416687,215.18,215.13,0.033577]
[1738486897247,4.68236687,215.18,215.13,0.033577]
[1738486898748,4.68236687,215.18,215.13,4.682777]
[1738486899144,8.98475842,215.17,215.13,0.033577]
[1738486899346,8.98475842,215.14,215.13,0.033577]
[1738486899649,13.63385842,215.14,215.08,4.6504]
[1738486899848,8.98475842,215.14,215.08,4.6504]
[1738486900039,8.98475842,215.14,215.0,8.98475842]
[1738486900246,10.50015842,215.17,215.03,8.98475842]
[1738486900749,10.50015842,215.17,215.07,4.6505]
[1738486900951,0.03267519,215.12,215.08,0.03250566]
[1738486901349,0.03267519,215.12,215.11,4.6496]
[1738486902647,0.03267519,215.12,215.09,4.65]
[1738486902844,0.03267519,215.12,215.08,0.03250566]
[1738486903251,0.03267519,215.12,215.08,4.68270566]
[1738486903447,0.03267519,215.12,215.08,0.03250566]
[1738486903750,0.03267519,215.12,215.11,4.6497]
[1738486911056,0.03267519,215.12,215.08,0.03250566]
[1738486911247,8.98475842,215.1,215.08,0.03250566]
[1738486912248,8.98475842,215.1,214.97,8.98475842]
[1738486912657,4.6506,215.08,215.01,4.6519]
[1738486913154,10.44175842,215.1,214.97,8.98475842]
[1738486913352,0.03502655,215.05,215.0,0.02956806]
[1738486913555,0.03502655,215.05,214.97,8.98475842]
[1738486914755,0.03502655,215.05,215.04,4.6511]
[1738486920763,0.03502655,215.05,214.99,0.03128064]
[1738486920959,0.03502655,215.05,215.02,4.6517]
[1738486921161,0.03502655,215.05,214.99,0.03128064]
[1738486921665,0.03502655,215.05,215.04,4.6512]
[1738486922765,0.03502655,215.05,214.99,0.03128064]
[1738486922766,1.457,215.15,215.03,8.98475842]
[1738486923158,8.98475842,215.16,215.03,8.98475842]
[1738486923667,8.98475842,215.16,215.11,4.6497]
[1738486923869,0.03350153,215.12,215.11,4.6497]
[1738486924168,1.489,215.18,215.12,4.6494]
[1738486924368,0.02963186,215.14,215.12,4.6494]
[1738486924863,0.02963186,215.14,215.11,0.03180054]
[1738486927773,4.6495,215.12,215.11,0.03180054]
[1738486927974,4.6495,215.12,214.97,1.3993]
[1738486927975,8.98475842,215.13,214.97,1.3993]
[1738486928178,8.98475842,215.05,214.97,1.3993]
[1738486928478,13.63645842,215.02,214.88,132.11722673]
[1738486928680,8.98475842,215.02,214.89,4.419]
[1738486928879,8.98475842,214.99,214.89,4.419]
[1738486929173,8.98475842,214.99,214.93,0.03351825]
[1738486929174,0.03174594,214.98,214.93,0.03351825]
[1738486929978,8.98475842,214.96,214.93,0.03351825]
[1738486930578,1.4189,214.95,214.83,45.08048815]
[1738486930779,8.98475842,214.9,214.83,45.08048815]
[1738486931081,8.98475842,214.9,214.84,4.6554]
[1738486931580,8.98475842,214.87,214.85,0.03243409]
[1738486931881,14.44930423,214.89,214.85,0.03243409]
[1738486932579,0.03025454,214.89,214.85,0.03243409]
[1738486933479,5.454e-05,214.89,214.85,0.03243409]
[1738486933876,5.454e-05,214.89,214.87,19.07384969]
[1738486934076,5.454e-05,214.89,214.88,1.4586]
[1738486935183,14.41904969,215.05,214.88,1.4586]
[1738486935882,14.41904969,215.05,214.94,4.6533]
[1738486936286,0.03114707,215.02,214.97,0.03498011]
[1738486937184,0.03114707,215.02,215.0,4.652]
[1738486937386,14.41904969,215.16,215.0,14.41904969]
[1738486937880,14.41904969,215.16,214.98,4.3544]
[1738486938287,4.6496,215.12,214.99,4.6523]
[1738486938484,0.03211372,215.09,215.05,0.03182059]
[1738486939389,14.41904969,215.06,214.86,15.87904969]
[1738486939577,14.41904969,215.02,214.86,1.46]
[1738486940487,17.29724969,215.05,214.86,15.87904969]
[1738486940688,0.029965,214.96,214.92,0.03210765]
[1738486940884,17.29724969,215.05,214.9,14.41904969]
[1738486941084,0.0329433,214.96,214.92,0.02998857]
[1738486941285,4.6517,215.02,214.92,4.6537]
[1738486941486,0.03484406,214.96,214.92,4.68497138]
[1738486941685,0.03484406,214.96,214.92,0.03127138]
[1738486943184,4.6534,214.94,214.92,0.03127138]
[1738486943491,0.03484406,214.96,214.78,15.91354969]
[1738486943685,4.6539,214.92,214.79,1.4125]
[1738486943892,4.6539,214.92,214.83,49.73618815]
[1738486944486,14.41904969,214.99,214.83,45.08048815]
[1738486944685,0.03259041,214.9,214.85,0.03145093]
[1738486944891,1.4545,214.98,214.83,45.08048815]
[1738486945186,0.03046632,214.9,214.85,0.03229592]
[1738486945489,0.03046632,214.9,214.85,0.03404316]
[1738486945685,0.03046632,214.9,214.88,4.6545]
[1738486947792,0.03046632,214.9,214.86,4.655]
[1738486948289,0.03046632,214.9,214.85,0.03404316]
[1738486950090,0.03046632,214.9,214.88,4.6546]
[1738486951395,0.03046632,214.9,214.89,4.6545]
[1738486955200,0.03046632,214.9,214.87,4.6549]
[1738486956107,0.03046632,214.9,214.85,4.68934316]
[1738486956502,0.03046632,214.9,214.85,0.03404316]
[1738486957705,5.80046632,214.9,214.85,0.03404316]
[1738486958301,5.80046632,214.9,214.86,4.655]
[1738486958504,5.80046632,214.9,214.85,0.03404316]
[1738486959708,2.8767,214.89,214.78,4.6567]
[1738486959906,4.3968,214.89,214.75,1.4977]
[1738486960407,18.81584969,214.89,214.66,92.1]
[1738486960707,18.81584969,214.89,214.67,4.2762]
[1738486960898,0.0319018,214.84,214.79,0.0306828]
[1738486962208,0.0319018,214.84,214.83,4.6558]
[1738486963307,1.8e-06,214.84,214.83,4.6558]
[1738486966811,13.37,214.9,214.89,4.6545]
[1738486968305,6.45849361,215.11,214.89,103.41904969]
[1738486968510,6.45849361,215.11,214.98,11.76904969]
[1738486968707,4.6506,215.07,214.98,11.76904969]
[1738486968906,6.45849361,215.11,215.01,4.6518]
[1738486969207,4.6506,215.07,214.94,14.41904969]
[1738486969405,0.03552153,215.08,215.04,0.03357557]
[1738486969606,1.4771,215.12,214.98,14.41904969]
[1738486969906,0.03378044,215.08,215.04,0.02991334]
[1738486971007,4.68418044,215.08,215.04,0.02991334]
[1738486972111,0.03378044,215.08,215.04,0.02991334]
[1738486972812,1.61378044,215.08,215.04,0.02991334]
[1738486973313,4.6506,215.07,215.04,0.02991334]
[1738486974312,1.61378044,215.08,215.04,0.02991334]
[1738486974515,1.61378044,215.08,215.06,4.6507]
[1738486974813,4.3813,215.22,215.07,14.41904969]
[1738486975613,4.6485,215.17,215.1,4.6499]
[1738486975813,0.03131147,215.17,215.12,0.03438228]
[1738486976313,0.75,215.16,215.12,0.03438228]
[1738486980815,4.6491,215.14,215.12,0.03438228]
[1738486981114,0.75,215.16,215.12,0.03438228]
[1738486981317,4.65,215.1,215.04,4.651]
[1738486981514,4.65,215.1,215.0,4.4394]
[1738486982113,14.41904969,215.15,215.05,4.6509]
[1738486982316,0.03106863,215.1,215.05,0.03105923]
[1738486983813,4.6502,215.09,215.05,0.03105923]
[1738486984218,0.03106863,215.1,215.05,0.03105923]
[1738486984419,4.6508,215.06,215.05,0.03105923]
[1738486985417,2.9243,215.09,215.05,0.03105923]
[1738486985717,2.9243,215.09,214.93,1.5429]
[1738486986421,2.9243,215.09,214.88,2.9251]
[1738486986619,4.6517,215.02,214.9,14.41904969]
[1738486986818,4.6517,215.02,214.99,0.03048724]
[1738486987118,3.72,215.02,214.97,4.6527]
[1738486987318,3.72,215.02,214.98,0.03497983]
[1738486988717,8.3717,215.02,214.98,0.03497983]
[1738486988919,3.72,215.02,214.98,0.03497983]
[1738486990117,3.72,215.02,214.9,14.41904969]
[1738486990921,4.6523,214.99,214.94,4.6532]
[1738486991218,4.6853741,214.99,214.94,0.0317946]
[1738486991714,4.6853741,214.99,214.94,4.6850946]
[1738486992618,0.0330741,214.99,214.94,0.0317946]
[1738486993316,0.0330741,214.99,214.97,4.6527]
[1738486993815,0.0330741,214.99,214.94,0.0317946]
[1738486994021,0.0330741,214.99,214.98,4.6525]
[1738486994622,0.0330741,214.99,214.94,0.0317946]
[1738486995426,0.0330741,214.99,214.95,4.6531]
[1738486995625,0.0330741,214.99,214.94,0.0317946]
[1738486995826,4.6853741,214.99,214.94,0.0317946]
[1738486996125,0.0330741,214.99,214.94,0.0317946]
[1738486996320,0.0330741,214.99,214.95,4.6532]
[1738486997430,0.0330741,214.99,214.94,0.0317946]
[1738486997631,0.0330741,214.99,214.98,4.6525]
[1738486997833,0.0330741,214.99,214.94,0.0317946]
[1738487000740,0.0330741,214.99,214.98,4.6525]
[1738487001439,0.0330741,214.99,214.94,0.0317946]
[1738487002741,0.0330741,214.99,214.96,4.6529]
[1738487004543,4.6527,214.98,214.94,0.0317946]
[1738487006543,0.0330741,214.99,214.94,0.0317946]
[1738487007945,0.0330741,214.99,214.97,4.6527]
[1738487009245,0.75,214.98,214.97,4.6527]
[1738487010843,6.34,214.98,214.97,4.6527]
[1738487013847,6.34,214.98,214.95,4.6531]
[1738487014346,6.34,214.98,214.96,4.6528]
[1738487014851,6.34,214.98,214.95,4.653]
[1738487015151,6.34,214.98,214.94,0.0317946]
[1738487015450,6.34,214.98,214.97,4.6527]
[1738487016349,6.34,214.98,214.94,0.0317946]
[1738487016645,6.34,214.98,214.95,4.6531]
[1738487016844,6.34,214.98,214.94,0.0317946]
[1738487017845,6.34,214.98,214.96,4.6529]
[1738487018344,6.34,214.98,214.94,0.0317946]